[Event "*** SCC Grand Prix: Titled Tuesday Blitz"]
[Site "Chess.com"]
[Date "2020.06.02"]
[Round "6"]
[White "Gordima"]
[Black "aNaartjieZA"]
[Result "1-0"]
[WhiteElo "2773"]
[BlackElo "2568"]
[TimeControl "180+1"]
[EndTime "11:11:41 PDT"]
[Termination "Gordima won by resignation"]

1. d4 {[%clk 0:03:00.9]} 1... Nf6 {[%clk 0:02:59.9]} 2. c4 {[%clk 0:03:01]} 2...
c5 {[%clk 0:02:59.9]} 3. d5 {[%clk 0:03:01]} 3... e5 {[%clk 0:03:00.2]} 4. Nc3
{[%clk 0:03:00.7]} 4... d6 {[%clk 0:03:00.6]} 5. e4 {[%clk 0:03:00.6]} 5... Be7
{[%clk 0:03:01.1]} 6. g3 {[%clk 0:02:56.4]} 6... Nbd7 {[%clk 0:03:00.1]} 7. Bg2
{[%clk 0:02:56.4]} 7... h5 {[%clk 0:03:00.1]} 8. h3 {[%clk 0:02:43.7]} 8... h4
{[%clk 0:02:57.9]} 9. g4 {[%clk 0:02:42.3]} 9... Nh7 {[%clk 0:02:57.9]} 10. Nf3
{[%clk 0:02:25.5]} 10... Ng5 {[%clk 0:02:55.6]} 11. Nxg5 {[%clk 0:02:14.1]}
11... Bxg5 {[%clk 0:02:55.2]} 12. Bxg5 {[%clk 0:02:08.7]} 12... Qxg5 {[%clk
0:02:54.5]} 13. Nb5 {[%clk 0:02:09.6]} 13... Ke7 {[%clk 0:02:54.6]} 14. a3
{[%clk 0:01:50.9]} 14... a6 {[%clk 0:02:50.2]} 15. Nc3 {[%clk 0:01:50.4]} 15...
g6 {[%clk 0:02:49.5]} 16. b4 {[%clk 0:01:41.7]} 16... b6 {[%clk 0:02:49]} 17.
Qd2 {[%clk 0:01:34]} 17... Qxd2+ {[%clk 0:02:46.8]} 18. Kxd2 {[%clk 0:01:34.9]}
18... Kd8 {[%clk 0:02:37.7]} 19. Rhb1 {[%clk 0:01:33.8]} 19... Kc7 {[%clk
0:02:37.2]} 20. Bf3 {[%clk 0:01:29.3]} 20... g5 {[%clk 0:02:31.1]} 21. Na4
{[%clk 0:01:20.1]} 21... Rh6 {[%clk 0:02:28.6]} 22. Bd1 {[%clk 0:01:13]} 22...
Rf6 {[%clk 0:02:27.9]} 23. Ke3 {[%clk 0:01:08.6]} 23... Rf4 {[%clk 0:02:25.3]}
24. Be2 {[%clk 0:01:02.7]} 24... Rf6 {[%clk 0:02:22]} 25. Rb2 {[%clk 0:01:00.7]}
25... Rh6 {[%clk 0:02:13.8]} 26. Rab1 {[%clk 0:00:59.7]} 26... Rh8 {[%clk
0:02:13.2]} 27. Bd1 {[%clk 0:00:53.8]} 27... Ra7 {[%clk 0:01:53.3]} 28. Nc3
{[%clk 0:00:53.2]} 28... Nf8 {[%clk 0:01:41.4]} 29. bxc5 {[%clk 0:00:50.3]}
29... bxc5 {[%clk 0:01:41]} 30. Rb6 {[%clk 0:00:50.5]} 30... Bd7 {[%clk
0:01:35.7]} 31. Ba4 {[%clk 0:00:50]} 31... Rh6 {[%clk 0:01:28.6]} 32. Bc6 {[%clk
0:00:41.3]} 32... Bc8 {[%clk 0:01:26.6]} 33. Ba4 {[%clk 0:00:21.8]} 33... Bd7
{[%clk 0:01:17.6]} 34. Bxd7 {[%clk 0:00:20.8]} 34... Nxd7 {[%clk 0:01:17.3]} 35.
Rc6+ {[%clk 0:00:19.6]} 35... Kd8 {[%clk 0:01:17.5]} 36. Na4 {[%clk 0:00:19.4]}
36... Rf6 {[%clk 0:01:02.2]} 37. Nc3 {[%clk 0:00:10.4]} 37... Rg6 {[%clk
0:00:58.3]} 38. a4 {[%clk 0:00:10.3]} 38... Ke7 {[%clk 0:00:55.1]} 39. Rc8
{[%clk 0:00:06.1]} 39... Nf6 {[%clk 0:00:48.4]} 40. a5 {[%clk 0:00:05.3]} 40...
Rg8 {[%clk 0:00:47.1]} 41. Rc6 {[%clk 0:00:03.1]} 41... Nd7 {[%clk 0:00:43.3]}
42. Na4 {[%clk 0:00:03.1]} 42... Nb8 {[%clk 0:00:42.5]} 43. Rcb6 {[%clk
0:00:02.1]} 43... Nd7 {[%clk 0:00:42.6]} 44. Rb7 {[%clk 0:00:01.7]} 44... Rxb7
{[%clk 0:00:42]} 45. Rxb7 {[%clk 0:00:02.6]} 45... Rb8 {[%clk 0:00:41.8]} 46.
Ra7 {[%clk 0:00:02.3]} 46... Kd8 {[%clk 0:00:38.6]} 47. Rxa6 {[%clk 0:00:02.3]}
47... Rb3+ {[%clk 0:00:36.9]} 48. Ke2 {[%clk 0:00:02.9]} 48... Kc7 {[%clk
0:00:37]} 49. Ra7+ {[%clk 0:00:02.5]} 49... Kd8 {[%clk 0:00:37.1]} 50. Ra8+
{[%clk 0:00:02.5]} 50... Kc7 {[%clk 0:00:36.7]} 51. Ra7+ {[%clk 0:00:03]} 51...
Kd8 {[%clk 0:00:36.6]} 52. Ra6 {[%clk 0:00:03.3]} 52... Kc7 {[%clk 0:00:35.9]}
53. Ra8 {[%clk 0:00:02.9]} 53... Rxh3 {[%clk 0:00:28.9]} 54. Ra7+ {[%clk
0:00:01.9]} 54... Kd8 {[%clk 0:00:28.2]} 55. Nb6 {[%clk 0:00:02.3]} 55... Nxb6
{[%clk 0:00:24.5]} 56. axb6 {[%clk 0:00:03.2]} 56... Rb3 {[%clk 0:00:23.8]} 57.
b7 {[%clk 0:00:02.9]} 57... Kc7 {[%clk 0:00:23.4]} 58. b8=Q+ {[%clk 0:00:03.4]}
58... Kxb8 {[%clk 0:00:23.5]} 59. Rxf7 {[%clk 0:00:04]} 59... h3 {[%clk
0:00:22.1]} 60. Rh7 {[%clk 0:00:03.9]} 60... Kc8 {[%clk 0:00:21.6]} 61. Rh5
{[%clk 0:00:03.9]} 61... Kd7 {[%clk 0:00:20.6]} 62. Rxg5 {[%clk 0:00:04.1]}
62... Ke7 {[%clk 0:00:20.1]} 63. Rh5 {[%clk 0:00:03.2]} 63... Kf6 {[%clk
0:00:20.3]} 64. f3 {[%clk 0:00:02.5]} 64... Rb2+ {[%clk 0:00:20]} 65. Kf1 {[%clk
0:00:02]} 65... Rb1+ {[%clk 0:00:19.3]} 66. Kf2 {[%clk 0:00:02.1]} 66... h2
{[%clk 0:00:19]} 67. Rxh2 {[%clk 0:00:01.9]} 67... Rc1 {[%clk 0:00:19.3]} 68.
Kg3 {[%clk 0:00:02.2]} 68... Rxc4 {[%clk 0:00:19]} 69. Rh6+ {[%clk 0:00:02.8]}
69... Ke7 {[%clk 0:00:19.1]} 70. Rh7+ {[%clk 0:00:03.2]} 70... Ke8 {[%clk
0:00:18.5]} 71. g5 {[%clk 0:00:03.1]} 71... Rc1 {[%clk 0:00:18.6]} 72. Kg4
{[%clk 0:00:03.6]} 72... Rf1 {[%clk 0:00:18.6]} 73. Kf5 {[%clk 0:00:03.4]} 73...
Rxf3+ {[%clk 0:00:18.1]} 74. Ke6 {[%clk 0:00:03.7]} 74... Kf8 {[%clk 0:00:18.5]}
75. Kxd6 {[%clk 0:00:03.3]} 75... c4 {[%clk 0:00:18.7]} 76. Rc7 {[%clk
0:00:03.6]} 76... c3 {[%clk 0:00:19]} 77. Kxe5 {[%clk 0:00:04.1]} 77... Rg3
{[%clk 0:00:18.9]} 78. Kf5 {[%clk 0:00:03.9]} 78... Ke8 {[%clk 0:00:18.4]} 79.
e5 {[%clk 0:00:03.9]} 79... Kd8 {[%clk 0:00:18.6]} 80. d6 {[%clk 0:00:04.4]}
80... Rf3+ {[%clk 0:00:18.9]} 81. Ke6 {[%clk 0:00:04.4]} 81... Rg3 {[%clk
0:00:19.2]} 82. Kf6 {[%clk 0:00:04.1]} 82... Rf3+ {[%clk 0:00:19]} 83. Kg7
{[%clk 0:00:04.1]} 83... Rf5 {[%clk 0:00:19.1]} 84. g6 {[%clk 0:00:03.3]} 84...
Rxe5 {[%clk 0:00:18.9]} 85. Kf6 {[%clk 0:00:03.6]} 85... Re3 {[%clk 0:00:18.4]}
86. g7 {[%clk 0:00:03.7]} 86... Rg3 {[%clk 0:00:18.4]} 87. Kf7 {[%clk
0:00:03.5]} 87... Rf3+ {[%clk 0:00:18.3]} 88. Kg6 {[%clk 0:00:03.8]} 88... Rg3+
{[%clk 0:00:18.4]} 89. Kh7 {[%clk 0:00:04.2]} 89... Rh3+ {[%clk 0:00:18.4]} 90.
Kg8 {[%clk 0:00:04.6]} 90... Rg3 {[%clk 0:00:18.5]} 91. Kf7 {[%clk 0:00:03.5]}
91... Rf3+ {[%clk 0:00:18.3]} 92. Ke6 {[%clk 0:00:03.7]} 92... Rg3 {[%clk
0:00:18.6]} 93. Ra7 {[%clk 0:00:03.4]} 93... Re3+ {[%clk 0:00:15.9]} 94. Kd5
{[%clk 0:00:03.4]} 94... Rd3+ {[%clk 0:00:15.8]} 95. Ke4 {[%clk 0:00:02.7]}
95... Rg3 {[%clk 0:00:15.7]} 96. Ra8+ {[%clk 0:00:02.8]} 96... Kd7 {[%clk
0:00:16]} 97. g8=Q {[%clk 0:00:03.7]} 97... Rxg8 {[%clk 0:00:15.7]} 98. Rxg8
{[%clk 0:00:04.6]} 98... c2 {[%clk 0:00:16]} 99. Rg1 {[%clk 0:00:05]} 1-0

[Event "*** SCC Grand Prix: Titled Tuesday Blitz"]
[Site "Chess.com"]
[Date "2020.06.02"]
[Round "6"]
[White "aleksa74"]
[Black "GigaQuparadze"]
[Result "1/2-1/2"]
[WhiteElo "2679"]
[BlackElo "2836"]
[TimeControl "180+1"]
[EndTime "11:12:06 PDT"]
[Termination "Game drawn by repetition"]

1. e4 {[%clk 0:03:00.9]} 1... c5 {[%clk 0:02:59.4]} 2. Nf3 {[%clk 0:03:01.2]}
2... a6 {[%clk 0:02:58.7]} 3. c3 {[%clk 0:02:59.1]} 3... d5 {[%clk 0:02:58.3]}
4. exd5 {[%clk 0:02:58.9]} 4... Qxd5 {[%clk 0:02:59.2]} 5. d4 {[%clk 0:02:59.4]}
5... Nf6 {[%clk 0:02:59.3]} 6. Be2 {[%clk 0:02:53.3]} 6... e6 {[%clk 0:02:58.8]}
7. O-O {[%clk 0:02:51.5]} 7... Be7 {[%clk 0:02:57.4]} 8. c4 {[%clk 0:02:49.3]}
8... Qc6 {[%clk 0:02:55.7]} 9. Nc3 {[%clk 0:02:47.7]} 9... O-O {[%clk
0:02:52.7]} 10. d5 {[%clk 0:02:45.7]} 10... exd5 {[%clk 0:02:50.9]} 11. cxd5
{[%clk 0:02:46]} 11... Qc7 {[%clk 0:02:50.9]} 12. a4 {[%clk 0:02:45.1]} 12...
Rd8 {[%clk 0:02:49.6]} 13. Qb3 {[%clk 0:02:38.1]} 13... Nbd7 {[%clk 0:02:46.9]}
14. Bg5 {[%clk 0:02:31.2]} 14... Bd6 {[%clk 0:02:43.2]} 15. h3 {[%clk
0:02:24.2]} 15... h6 {[%clk 0:02:39.7]} 16. Be3 {[%clk 0:02:18.9]} 16... Ne5
{[%clk 0:02:36.6]} 17. a5 {[%clk 0:02:12.8]} 17... Rb8 {[%clk 0:02:34.5]} 18.
Nxe5 {[%clk 0:02:11.7]} 18... Bxe5 {[%clk 0:02:35.4]} 19. Bf3 {[%clk 0:02:01]}
19... b5 {[%clk 0:02:32.9]} 20. axb6 {[%clk 0:02:01.3]} 20... Rxb6 {[%clk
0:02:32.3]} 21. Qc2 {[%clk 0:02:01.7]} 21... Rb4 {[%clk 0:02:27.6]} 22. Rfd1
{[%clk 0:01:50.1]} 22... Bb7 {[%clk 0:02:26.8]} 23. Na4 {[%clk 0:01:48.9]} 23...
Bxd5 {[%clk 0:02:13.3]} 24. Qxc5 {[%clk 0:01:42.2]} 24... Qxc5 {[%clk
0:01:08.1]} 25. Nxc5 {[%clk 0:01:43.1]} 25... Kh7 {[%clk 0:01:00.9]} 26. Rd2
{[%clk 0:01:27.8]} 26... Rxb2 {[%clk 0:00:58.1]} 27. Rxb2 {[%clk 0:01:05.9]}
27... Bxb2 {[%clk 0:00:59]} 28. Rxa6 {[%clk 0:01:05.5]} 28... Bxf3 {[%clk
0:00:59.4]} 29. gxf3 {[%clk 0:01:06.4]} 29... Rd1+ {[%clk 0:00:58.8]} 30. Kg2
{[%clk 0:01:06.2]} 30... Nd5 {[%clk 0:00:59.3]} 31. Ne4 {[%clk 0:01:02.3]} 31...
f5 {[%clk 0:00:58]} 32. Nd6 {[%clk 0:00:51.3]} 32... f4 {[%clk 0:00:57.9]} 33.
Bc5 {[%clk 0:00:51]} 33... Rc1 {[%clk 0:00:56.3]} 34. Ne4 {[%clk 0:00:50.6]}
34... Rc2 {[%clk 0:00:55.6]} 35. Ra2 {[%clk 0:00:41.8]} 35... Ne3+ {[%clk
0:00:55.5]} 36. Kh2 {[%clk 0:00:34.4]} 36... g5 {[%clk 0:00:44.6]} 37. Ba3
{[%clk 0:00:23.6]} 37... Bxa3 {[%clk 0:00:44.2]} 38. Rxa3 {[%clk 0:00:23.9]}
38... Nf5 {[%clk 0:00:44.5]} 39. Ra6 {[%clk 0:00:22.9]} 39... Nh4 {[%clk
0:00:43.7]} 40. Ra3 {[%clk 0:00:17.2]} 40... Kg6 {[%clk 0:00:42.6]} 41. Rb3
{[%clk 0:00:17.4]} 41... Rc1 {[%clk 0:00:41]} 42. Ra3 {[%clk 0:00:16.2]} 42...
Kf5 {[%clk 0:00:40.8]} 43. Ra5+ {[%clk 0:00:15.7]} 43... Ke6 {[%clk 0:00:40.9]}
44. Ra3 {[%clk 0:00:15.7]} 44... Ke5 {[%clk 0:00:40.9]} 45. Rb3 {[%clk
0:00:15.1]} 45... Rc2 {[%clk 0:00:38.7]} 46. Ra3 {[%clk 0:00:12.4]} 46... Nxf3+
{[%clk 0:00:38.5]} 47. Rxf3 {[%clk 0:00:12.5]} 47... Kxe4 {[%clk 0:00:39.3]} 48.
Kg2 {[%clk 0:00:12.6]} 48... h5 {[%clk 0:00:39.6]} 49. Ra3 {[%clk 0:00:12.3]}
49... g4 {[%clk 0:00:39.4]} 50. hxg4 {[%clk 0:00:12.7]} 50... hxg4 {[%clk
0:00:40.3]} 51. Ra4+ {[%clk 0:00:13]} 51... Ke5 {[%clk 0:00:40.6]} 52. Ra5+
{[%clk 0:00:12.4]} 52... Kd4 {[%clk 0:00:40.8]} 53. Ra4+ {[%clk 0:00:12.4]}
53... Rc4 {[%clk 0:00:39.8]} 54. Ra3 {[%clk 0:00:09.7]} 54... Ke4 {[%clk
0:00:35.5]} 55. Ra8 {[%clk 0:00:09.5]} 55... Rc1 {[%clk 0:00:31.1]} 56. Re8+
{[%clk 0:00:08.6]} 56... Kd5 {[%clk 0:00:29.8]} 57. Rd8+ {[%clk 0:00:08.2]}
57... Ke5 {[%clk 0:00:30.1]} 58. Re8+ {[%clk 0:00:08.2]} 58... Kd6 {[%clk
0:00:30.3]} 59. Rf8 {[%clk 0:00:06.9]} 59... f3+ {[%clk 0:00:30.2]} 60. Kh2
{[%clk 0:00:07.1]} 60... Rf1 {[%clk 0:00:29.8]} 61. Kg3 {[%clk 0:00:07.5]} 61...
Rg1+ {[%clk 0:00:29.8]} 62. Kf4 {[%clk 0:00:07.9]} 62... Rg2 {[%clk 0:00:28.2]}
63. Ke3 {[%clk 0:00:08]} 63... Ke5 {[%clk 0:00:27.4]} 64. Rf7 {[%clk 0:00:06.9]}
64... Ke6 {[%clk 0:00:27]} 65. Rf8 {[%clk 0:00:07.1]} 65... Ke7 {[%clk
0:00:26.3]} 66. Rf4 {[%clk 0:00:07.1]} 66... Rg1 {[%clk 0:00:25.1]} 67. Rf5
{[%clk 0:00:05.4]} 67... Ke6 {[%clk 0:00:25]} 68. Rf8 {[%clk 0:00:05.2]} 68...
Kd5 {[%clk 0:00:25]} 69. Rf5+ {[%clk 0:00:03.8]} 69... Kc4 {[%clk 0:00:24.9]}
70. Rf8 {[%clk 0:00:03.6]} 70... Kc3 {[%clk 0:00:25.2]} 71. Rc8+ {[%clk
0:00:03.1]} 71... Kb2 {[%clk 0:00:25.2]} 72. Kf4 {[%clk 0:00:03.4]} 72... Rg2
{[%clk 0:00:24.4]} 73. Ke3 {[%clk 0:00:03.6]} 73... Kb1 {[%clk 0:00:23.8]} 74.
Rc7 {[%clk 0:00:03.9]} 74... Rg1 {[%clk 0:00:23.4]} 75. Rc8 {[%clk 0:00:04]}
75... Rd1 {[%clk 0:00:21.6]} 76. Rc4 {[%clk 0:00:02.7]} 76... Re1+ {[%clk
0:00:21.6]} 77. Kf4 {[%clk 0:00:02.7]} 77... Rg1 {[%clk 0:00:21.8]} 78. Ke3
{[%clk 0:00:02.3]} 78... Kb2 {[%clk 0:00:21.5]} 79. Rc8 {[%clk 0:00:02.4]} 79...
Re1+ {[%clk 0:00:20.7]} 80. Kf4 {[%clk 0:00:02.6]} 80... Rg1 {[%clk 0:00:21.3]}
81. Ke3 {[%clk 0:00:02.7]} 81... Kb3 {[%clk 0:00:21.7]} 82. Rc7 {[%clk
0:00:02.5]} 82... Kb4 {[%clk 0:00:21.9]} 83. Rc8 {[%clk 0:00:02.7]} 83... Kb5
{[%clk 0:00:22.1]} 84. Rc7 {[%clk 0:00:02.8]} 84... Re1+ {[%clk 0:00:22.3]} 85.
Kf4 {[%clk 0:00:02.6]} 85... Rg1 {[%clk 0:00:23.2]} 86. Ke3 {[%clk 0:00:02.8]}
86... Kb6 {[%clk 0:00:23.5]} 87. Rc8 {[%clk 0:00:02.8]} 87... Re1+ {[%clk
0:00:23.3]} 88. Kf4 {[%clk 0:00:02.7]} 88... Rg1 {[%clk 0:00:24.2]} 89. Rg8
{[%clk 0:00:02.3]} 89... Kc5 {[%clk 0:00:23.6]} 90. Rxg4 {[%clk 0:00:02.3]}
90... Rd1 {[%clk 0:00:24.3]} 91. Kxf3 {[%clk 0:00:02.4]} 91... Rd3+ {[%clk
0:00:25.2]} 92. Kg2 {[%clk 0:00:02.7]} 92... Kd5 {[%clk 0:00:24.9]} 93. Rf4
{[%clk 0:00:03]} 93... Ke5 {[%clk 0:00:24.5]} 94. Rf8 {[%clk 0:00:03.5]} 94...
Ke6 {[%clk 0:00:24.3]} 95. Rf3 {[%clk 0:00:02.7]} 95... Rd8 {[%clk 0:00:23.7]}
96. Rf4 {[%clk 0:00:02.6]} 96... Ke5 {[%clk 0:00:24]} 97. Rf7 {[%clk 0:00:02.6]}
97... Ke6 {[%clk 0:00:23.6]} 98. Rf4 {[%clk 0:00:02.2]} 98... Rg8+ {[%clk
0:00:23.5]} 99. Kf3 {[%clk 0:00:02.3]} 99... Ra8 {[%clk 0:00:24.4]} 100. Rd4
{[%clk 0:00:01.9]} 100... Ke5 {[%clk 0:00:24.5]} 101. Re4+ {[%clk 0:00:02.3]}
101... Kf5 {[%clk 0:00:23.2]} 102. Rf4+ {[%clk 0:00:02.8]} 102... Ke5 {[%clk
0:00:24.1]} 103. Re4+ {[%clk 0:00:03.1]} 103... Kf5 {[%clk 0:00:24.4]} 104. Re3
{[%clk 0:00:03.7]} 104... Ra4 {[%clk 0:00:23.8]} 105. Rd3 {[%clk 0:00:03.9]}
105... Rf4+ {[%clk 0:00:23.7]} 106. Kg3 {[%clk 0:00:04.3]} 106... Rg4+ {[%clk
0:00:24.6]} 107. Kf3 {[%clk 0:00:04.7]} 107... Rf4+ {[%clk 0:00:24.9]} 108. Kg3
{[%clk 0:00:05.1]} 108... Rg4+ {[%clk 0:00:25.2]} 109. Kf3 {[%clk 0:00:05.3]}
109... Rf4+ {[%clk 0:00:25.6]} 1/2-1/2

[Event "*** SCC Grand Prix: Titled Tuesday Blitz"]
[Site "Chess.com"]
[Date "2020.06.02"]
[Round "6"]
[White "tigra"]
[Black "AnishGiri"]
[Result "0-1"]
[WhiteElo "2725"]
[BlackElo "2975"]
[TimeControl "180+1"]
[EndTime "11:12:24 PDT"]
[Termination "AnishGiri won on time"]

1. e4 {[%clk 0:03:00.9]} 1... e5 {[%clk 0:03:00.3]} 2. Nf3 {[%clk 0:03:01.2]}
2... Nc6 {[%clk 0:03:00.9]} 3. Bc4 {[%clk 0:03:00.1]} 3... Bc5 {[%clk
0:03:00.9]} 4. b4 {[%clk 0:02:57.6]} 4... Bxb4 {[%clk 0:03:00.9]} 5. c3 {[%clk
0:02:58.1]} 5... Be7 {[%clk 0:02:51.7]} 6. d4 {[%clk 0:02:58]} 6... Na5 {[%clk
0:02:50.8]} 7. Be2 {[%clk 0:02:57.9]} 7... d6 {[%clk 0:02:51.1]} 8. O-O {[%clk
0:02:50.5]} 8... Nf6 {[%clk 0:02:50.9]} 9. Qa4+ {[%clk 0:02:42.4]} 9... c6
{[%clk 0:02:51.1]} 10. dxe5 {[%clk 0:02:42.7]} 10... dxe5 {[%clk 0:02:51.5]} 11.
Nxe5 {[%clk 0:02:43.6]} 11... O-O {[%clk 0:02:51.9]} 12. Be3 {[%clk 0:02:25.5]}
12... b5 {[%clk 0:02:49.3]} 13. Qc2 {[%clk 0:02:24.7]} 13... Qc7 {[%clk
0:02:43.5]} 14. Nf3 {[%clk 0:02:05.7]} 14... a6 {[%clk 0:02:30.5]} 15. h3 {[%clk
0:02:03.9]} 15... c5 {[%clk 0:02:29.9]} 16. a4 {[%clk 0:02:01.9]} 16... Bb7
{[%clk 0:02:29]} 17. Nbd2 {[%clk 0:01:59.7]} 17... c4 {[%clk 0:02:29.4]} 18.
axb5 {[%clk 0:01:49]} 18... axb5 {[%clk 0:02:29.4]} 19. Nd4 {[%clk 0:01:49.7]}
19... Qd7 {[%clk 0:02:11.3]} 20. Rfb1 {[%clk 0:01:29.7]} 20... Bc5 {[%clk
0:01:52.3]} 21. Nxb5 {[%clk 0:01:22.8]} 21... Bxe3 {[%clk 0:01:51.3]} 22. fxe3
{[%clk 0:01:23.7]} 22... Qe7 {[%clk 0:01:38.5]} 23. Nd4 {[%clk 0:01:12.2]} 23...
Nb3 {[%clk 0:01:15.7]} 24. Rxa8 {[%clk 0:01:03.5]} 24... Bxa8 {[%clk 0:01:14.3]}
25. Nxc4 {[%clk 0:00:57.3]} 25... Nc5 {[%clk 0:01:14.6]} 26. e5 {[%clk
0:00:54.9]} 26... Be4 {[%clk 0:01:03.1]} 27. exf6 {[%clk 0:00:51.1]} 27... Qxf6
{[%clk 0:01:04]} 28. Qa2 {[%clk 0:00:41.7]} 28... Qg6 {[%clk 0:01:02.6]} 29. Bd3
{[%clk 0:00:25.5]} 29... Nxd3 {[%clk 0:00:55.3]} 30. Rd1 {[%clk 0:00:16.1]}
30... Ra8 {[%clk 0:00:54.5]} 31. Qe2 {[%clk 0:00:12.8]} 31... h6 {[%clk
0:00:51.8]} 32. Nd2 {[%clk 0:00:11.1]} 32... Bb7 {[%clk 0:00:40.7]} 33. N2f3
{[%clk 0:00:10.7]} 33... Nc5 {[%clk 0:00:39.2]} 34. Kh1 {[%clk 0:00:08.9]} 34...
Ne4 {[%clk 0:00:37]} 35. Qb2 {[%clk 0:00:07.7]} 35... Bc8 {[%clk 0:00:30.4]} 36.
Ra1 {[%clk 0:00:07.8]} 36... Rxa1+ {[%clk 0:00:11.5]} 37. Qxa1 {[%clk
0:00:08.7]} 37... Kh7 {[%clk 0:00:12.1]} 38. c4 {[%clk 0:00:07.8]} 38... Bxh3
{[%clk 0:00:09]} 39. Qg1 {[%clk 0:00:03.4]} 39... Bg4 {[%clk 0:00:04.1]} 40. Qe1
{[%clk 0:00:03.4]} 40... Qh5+ {[%clk 0:00:04]} 41. Kg1 {[%clk 0:00:02.7]} 41...
Nd6 {[%clk 0:00:02.1]} 42. Qc1 {[%clk 0:00:01.9]} 42... Qc5 {[%clk 0:00:02.1]}
43. Qb1+ {[%clk 0:00:01.7]} 43... g6 {[%clk 0:00:01.3]} 44. Nh2 {[%clk
0:00:01.8]} 44... Bd7 {[%clk 0:00:01.1]} 45. Qf1 {[%clk 0:00:02.3]} 45... Qxc4
{[%clk 0:00:01.3]} 46. Qf6 {[%clk 0:00:02.6]} 46... Qc5 {[%clk 0:00:01.3]} 47.
Nhf3 {[%clk 0:00:02.7]} 47... Be8 {[%clk 0:00:01.8]} 48. Ne5 {[%clk 0:00:02.8]}
48... Qd5 {[%clk 0:00:01.7]} 49. Qe7 {[%clk 0:00:03]} 49... h5 {[%clk
0:00:01.2]} 50. Kh2 {[%clk 0:00:01.8]} 50... Kg7 {[%clk 0:00:01.7]} 51. Ndf3
{[%clk 0:00:02.1]} 51... Qe6 {[%clk 0:00:01.9]} 52. Qxe6 {[%clk 0:00:02]} 52...
fxe6 {[%clk 0:00:02.3]} 53. Nd4 {[%clk 0:00:02.4]} 53... Kf6 {[%clk 0:00:02.7]}
54. Nd3 {[%clk 0:00:02.5]} 54... e5 {[%clk 0:00:03]} 55. Ne2 {[%clk 0:00:03.2]}
55... Nc4 {[%clk 0:00:03.5]} 56. e4 {[%clk 0:00:03.1]} 56... Bc6 {[%clk
0:00:03.9]} 57. Nc3 {[%clk 0:00:03.4]} 57... g5 {[%clk 0:00:03.6]} 58. Kg3
{[%clk 0:00:01.8]} 58... Nd6 {[%clk 0:00:03.8]} 59. Nc5 {[%clk 0:00:01.9]} 59...
Kg6 {[%clk 0:00:03.3]} 60. Kf3 {[%clk 0:00:02.3]} 60... Kf6 {[%clk 0:00:03.5]}
61. g3 {[%clk 0:00:02.6]} 61... Ke7 {[%clk 0:00:03.8]} 62. Ke3 {[%clk
0:00:03.1]} 62... Nc4+ {[%clk 0:00:04.2]} 63. Kd3 {[%clk 0:00:03.3]} 63... Nb2+
{[%clk 0:00:04.8]} 64. Ke3 {[%clk 0:00:03.7]} 64... Nc4+ {[%clk 0:00:05.7]} 65.
Kd3 {[%clk 0:00:04]} 65... Nb6 {[%clk 0:00:06.6]} 66. Ke3 {[%clk 0:00:04.6]}
66... Kd6 {[%clk 0:00:07]} 67. Nd3 {[%clk 0:00:04.9]} 67... Nc4+ {[%clk
0:00:07.3]} 68. Ke2 {[%clk 0:00:05.6]} 68... Bd7 {[%clk 0:00:07.4]} 69. Kf3
{[%clk 0:00:05.8]} 69... Bg4+ {[%clk 0:00:07.8]} 70. Kf2 {[%clk 0:00:06.5]}
70... Be6 {[%clk 0:00:08.1]} 71. Nb5+ {[%clk 0:00:06.3]} 71... Kc6 {[%clk
0:00:07.3]} 72. Nc3 {[%clk 0:00:07.2]} 72... Kd6 {[%clk 0:00:07.9]} 73. Kf3
{[%clk 0:00:07.6]} 73... Ke7 {[%clk 0:00:08.3]} 74. Kf2 {[%clk 0:00:07.8]} 74...
Bg4 {[%clk 0:00:08.5]} 75. Nd5+ {[%clk 0:00:07.4]} 75... Kf7 {[%clk 0:00:08.5]}
76. Nc3 {[%clk 0:00:08.3]} 76... Be6 {[%clk 0:00:08.7]} 77. Nb5 {[%clk
0:00:08.3]} 77... Kf6 {[%clk 0:00:08.7]} 78. Nc3 {[%clk 0:00:08.6]} 78... h4
{[%clk 0:00:09]} 79. gxh4 {[%clk 0:00:08]} 79... gxh4 {[%clk 0:00:09.9]} 80. Kf3
{[%clk 0:00:08.6]} 80... Kg5 {[%clk 0:00:09.9]} 81. Nf2 {[%clk 0:00:08.7]} 81...
Nd2+ {[%clk 0:00:09.1]} 82. Ke3 {[%clk 0:00:09.1]} 82... Nc4+ {[%clk 0:00:08.9]}
83. Kf3 {[%clk 0:00:09.7]} 83... Nd6 {[%clk 0:00:08.4]} 84. Ncd1 {[%clk
0:00:09.3]} 84... Bf7 {[%clk 0:00:07.9]} 85. Ne3 {[%clk 0:00:08.9]} 85... Bh5+
{[%clk 0:00:07.7]} 86. Kg2 {[%clk 0:00:03.9]} 86... Bg6 {[%clk 0:00:08]} 87. Kf3
{[%clk 0:00:03.7]} 87... Nf7 {[%clk 0:00:08]} 88. Nc4 {[%clk 0:00:04]} 88...
Bh5+ {[%clk 0:00:08.1]} 89. Kg2 {[%clk 0:00:04.4]} 89... Kf4 {[%clk 0:00:07.5]}
90. Kh3 {[%clk 0:00:04.4]} 90... Kg5 {[%clk 0:00:07.1]} 91. Kg2 {[%clk
0:00:04.7]} 91... Bg6 {[%clk 0:00:06.1]} 92. Nh3+ {[%clk 0:00:04.8]} 92... Kf6
{[%clk 0:00:06]} 93. Nf2 {[%clk 0:00:05.7]} 93... Ng5 {[%clk 0:00:06]} 94. Ng4+
{[%clk 0:00:06]} 94... Ke6 {[%clk 0:00:06.5]} 95. Ncxe5 {[%clk 0:00:06.3]} 95...
Bxe4+ {[%clk 0:00:07.1]} 96. Kf2 {[%clk 0:00:06.8]} 96... Kf5 {[%clk 0:00:07.8]}
97. Ke3 {[%clk 0:00:07]} 97... h3 {[%clk 0:00:07.5]} 98. Kd4 {[%clk 0:00:07.4]}
98... Kf4 {[%clk 0:00:07.1]} 99. Nf2 {[%clk 0:00:05.3]} 99... h2 {[%clk
0:00:05.8]} 100. Neg4 {[%clk 0:00:04.3]} 100... Nf3+ {[%clk 0:00:03.7]} 101. Kc3
{[%clk 0:00:04.6]} 101... Bf5 {[%clk 0:00:03.4]} 102. Nxh2 {[%clk 0:00:04.9]}
102... Nxh2 {[%clk 0:00:04.3]} 0-1